fUSD/lending_fUSD_20260107
["ID","MTS","AMOUNT","RATE_DAILY","PERIOD"]
[400656087,1767769853640,-303.816362,0.00039,120]
[400656088,1767769853650,-175.800649,0.00039,120]
[400656089,1767769853660,-303.816362,0.00039,120]
[400656090,1767769853670,-151.0,0.00039,120]
[400656091,1767769853680,-151.0,0.00039,120]
[400656092,1767769853690,-350.712633,0.00039,2]
[400656093,1767769853700,-151.0,0.00039,120]
[400656094,1767769853711,-151.0,0.00039,120]
[400656095,1767769853723,-151.0,0.00039,120]
[400656096,1767769853734,-3689.7,0.00039032,2]
[400656097,1767769853745,-309.54803019,0.0003904,10]
[400656098,1767769853755,-2080.0,0.00039041,120]
[400656099,1767769853765,-2080.0,0.00039041,120]
[400656100,1767769853775,-2080.0,0.00039041,120]
[400656101,1767769853785,-2080.0,0.00039041,120]
[400656102,1767769853795,-2080.0,0.00039041,120]
[400656103,1767769853805,-2080.0,0.00039041,120]
[400656104,1767769853815,-2080.0,0.00039041,120]
[400656105,1767769853826,-2080.0,0.00039041,120]
[400656106,1767769853837,-2080.0,0.00039041,120]
[400656107,1767769853847,-2080.0,0.00039041,120]
[400656108,1767769853857,-2080.0,0.00039041,120]
[400656109,1767769853868,-2080.0,0.00039041,120]
[400656110,1767769853878,-466.43,0.00039055,2]
[400656111,1767769853888,-1354.4,0.00039105,6]
[400656112,1767769853899,-1552.16146435,0.00039122,2]
[400656113,1767769853910,-1552.16146435,0.00039122,2]
[400656114,1767769853921,-1552.16146435,0.00039122,2]
[400656115,1767769853931,-1552.16146435,0.00039122,2]
[400656116,1767769853941,-1552.16146435,0.00039122,2]
[400656117,1767769853951,-1552.16146435,0.00039122,2]
[400656118,1767769853961,-1552.16146435,0.00039122,2]
[400656119,1767769853972,-1552.16146435,0.00039122,2]
[400656120,1767769853981,-305.5346716,0.00039122,2]
[400656121,1767769853991,-1552.16146435,0.00039122,2]
[400656122,1767769854001,-1552.16146435,0.00039122,2]
[400656123,1767769854011,-708.50617249,0.00039122,2]
[400656124,1767769854021,-501.0,0.00039159,12]
[400656125,1767769854030,-1903.1,0.00039181,6]
[400656126,1767769854040,-1099.49,0.00039342,2]
[400656127,1767769854050,-250.0,0.000395,45]
[400656128,1767769854060,-250.0,0.000395,45]
[400656129,1767769854071,-250.0,0.000395,45]
[400656130,1767769854081,-168.5,0.000395,14]
[400656131,1767769854091,-1000.0,0.000395,120]
[400656132,1767769854100,-1140.13,0.000395,30]
[400656133,1767769854111,-200.0,0.00039599,6]
[400656134,1767769854121,-200.0,0.00039599,6]
[400656135,1767769854131,-200.0,0.00039599,6]
[400656136,1767769854141,-200.0,0.00039599,6]
[400656137,1767769854150,-200.0,0.00039599,6]
[400656138,1767769854160,-200.0,0.000396,6]
[400656139,1767769854170,-200.0,0.000396,6]
[400656140,1767769854179,-200.0,0.000396,6]
[400656141,1767769854189,-200.0,0.000396,6]
[400656142,1767769854202,-200.0,0.000396,6]
[400656143,1767769854212,-1354.4,0.00039608,6]
[400656144,1767769854222,-914.0,0.00039659,2]
[400656145,1767769854232,-1201.0,0.00039659,2]
[400656146,1767769854243,-151.0,0.00039659,120]
[400656147,1767769854253,-151.0,0.00039659,120]
[400656148,1767769854263,-151.0,0.00039659,120]
[400656149,1767769854275,-151.0,0.00039659,120]
[400656150,1767769854285,-2080.0,0.00039659,120]
[400656151,1767769854294,-2080.0,0.00039659,120]
[400656152,1767769854304,-2080.0,0.00039659,120]
[400656153,1767769854313,-2080.0,0.00039659,120]
[400656154,1767769854323,-591.872125,0.00039659,120]
[400656155,1767769854333,-591.872125,0.00039659,120]
[400656156,1767769854343,-591.872125,0.00039659,120]
[400656157,1767769854352,-591.872125,0.00039659,120]
[400656158,1767769854362,-929.449749,0.00039659,120]
[400656159,1767769854372,-929.449749,0.00039659,120]
[400656160,1767769854382,-929.449749,0.00039659,120]
[400656161,1767769854391,-929.449749,0.00039659,120]
[400656162,1767769854402,-2436.0,0.00039659,2]
[400656163,1767769854413,-4818.0,0.00039659,2]
[400656164,1767769854423,-4640.706,0.00039659,2]
[400656165,1767769854432,-501.0,0.00039671,120]
[400656166,1767769854442,-150.0,0.000397,2]
[400656167,1767769854451,-661.02,0.00039742,2]
[400656168,1767769854461,-661.02,0.00039742,2]
[400656169,1767769854472,-661.33,0.00039742,2]
[400656170,1767769854482,-455.94,0.00039742,2]
[400656171,1767769854492,-500.0,0.00039799,120]
[400656172,1767769854502,-223920.27124169,0.000398,2]
[400656173,1767769854512,-173.46,0.000398,14]
[400656174,1767769854522,-500.0,0.000398,120]
[400656175,1767769854532,-151.0,0.000398,120]
[400656176,1767769854542,-151.0,0.000398,120]
[400656177,1767769854552,-151.0,0.000398,120]
[400656178,1767769854563,-151.0,0.000398,120]
[400656179,1767769854572,-151.0,0.000398,120]
[400656180,1767769854581,-189.587143,0.000398,7]
[400656181,1767769854591,-189.587143,0.000398,7]
[400656182,1767769854601,-189.587143,0.000398,7]
[400656183,1767769854610,-189.587143,0.000398,7]
[400656184,1767769854620,-1444.4591705,0.000398,2]
[400656185,1767769854630,-466.43,0.00039855,2]
[400656186,1767769854640,-466.59,0.00039883,2]
[400656187,1767769854650,-466.59,0.00039883,2]
[400656188,1767769854659,-466.59,0.00039883,2]
[400656189,1767769854669,-466.59,0.00039883,2]
[400656190,1767769854678,-466.59,0.00039883,2]
[400656191,1767769854688,-466.59,0.00039883,2]
[400656192,1767769854697,-466.59,0.00039883,2]
[400656193,1767769854707,-466.59,0.00039883,2]
[400656194,1767769854716,-466.59,0.00039883,2]
[400656195,1767769854727,-466.59,0.00039883,2]
[400656196,1767769854736,-466.59,0.00039883,2]
[400656197,1767769854746,-466.59,0.00039883,2]
[400656198,1767769854755,-466.59,0.00039883,2]
[400656199,1767769854764,-466.59,0.00039883,2]
[400656200,1767769854774,-466.59,0.00039883,2]
[400656201,1767769854783,-500.0,0.00039899,120]
[400656202,1767769854793,-500.0,0.00039899,120]
[400656203,1767769854804,-500.0,0.00039899,120]
[400656204,1767769854815,-11352.48944989,0.000399,30]
[400656205,1767769854825,-546817.95802251,0.000399,120]
[400656206,1767769854834,-151.0,0.000399,120]
[400656207,1767769854843,-179.789439,0.000399,120]
[400656208,1767769854853,-179.789439,0.000399,120]
[400656209,1767769854863,-179.789439,0.000399,120]
[400656210,1767769854873,-179.789435,0.000399,120]
[400656211,1767769854883,-151.0,0.000399,120]
[400656212,1767769854893,-151.0,0.000399,120]
[400656213,1767769854903,-151.0,0.000399,120]
[400656214,1767769854912,-151.0,0.000399,120]
[400656215,1767769854922,-151.0,0.000399,120]
[400656216,1767769854931,-151.0,0.000399,120]
[400656217,1767769854941,-151.0,0.000399,120]
[400656218,1767769854951,-151.0,0.000399,120]
[400656219,1767769854961,-151.0,0.000399,120]
[400656220,1767769854972,-204.031427,0.000399,120]
[400656221,1767769854982,-189.587143,0.000399,7]
[400656222,1767769854992,-189.587143,0.000399,7]
[400656223,1767769855001,-189.587143,0.000399,7]
[400656224,1767769855011,-189.587139,0.000399,7]
[400656225,1767769855020,-658.245968,0.000399,120]
[400656226,1767769855030,-658.245968,0.000399,120]
[400656227,1767769855040,-1070.624539,0.000399,120]
[400656228,1767769855049,-658.245968,0.000399,120]
[400656229,1767769855059,-1070.624539,0.000399,120]
[400656230,1767769855068,-658.245968,0.000399,120]
[400656231,1767769855078,-1070.624539,0.000399,120]
[400656232,1767769855087,-162.586525,0.000399,120]
[400656233,1767769855097,-1070.624539,0.000399,120]
[400656234,1767769855107,-1948.565341,0.000399,28]
[400656235,1767769855116,-1948.565341,0.000399,28]
[400656236,1767769855126,-1948.565341,0.000399,28]
[400656237,1767769855136,-1948.565341,0.000399,28]
[400656238,1767769855145,-181.958378,0.000399,120]
[400656239,1767769855155,-178.256754,0.000399,120]
[400656240,1767769855164,-181.958378,0.000399,120]
[400656241,1767769855173,-178.256754,0.000399,120]
[400656242,1767769855183,-181.958378,0.000399,120]
[400656243,1767769855193,-178.256754,0.000399,120]
[400656244,1767769855205,-181.958378,0.000399,120]
[400656245,1767769855215,-178.256754,0.000399,120]
[400656246,1767769855225,-1378.924321,0.000399,120]
[400656247,1767769855235,-1378.924321,0.000399,120]
[400656248,1767769855244,-703.048742,0.000399,120]
[400656249,1767769855254,-1378.924321,0.000399,120]
[400656250,1767769855263,-703.048742,0.000399,120]
[400656251,1767769855274,-1378.924321,0.000399,120]
[400656252,1767769855284,-157.892488,0.000399,120]
[400656253,1767769855293,-703.048742,0.000399,120]
[400656254,1767769855303,-703.048742,0.000399,120]
[400656255,1767769855313,-157.892488,0.000399,120]
[400656256,1767769855323,-157.892488,0.000399,120]
[400656257,1767769855332,-157.892488,0.000399,120]
[400656258,1767769855342,-471.891525,0.000399,120]
[400656259,1767769855352,-471.891525,0.000399,120]
[400656260,1767769855364,-471.891525,0.000399,120]
[400656261,1767769855374,-471.891525,0.000399,120]
[400656262,1767769855384,-995.494573,0.000399,120]
[400656263,1767769855393,-995.494573,0.000399,120]
[400656264,1767769855403,-995.494573,0.000399,120]
[400656265,1767769855412,-995.494573,0.000399,120]
[400656266,1767769855422,-151.0,0.000399,120]
[400656267,1767769855432,-151.0,0.000399,120]
[400656268,1767769855443,-151.0,0.000399,120]
[400656269,1767769855453,-151.0,0.000399,120]
[400656270,1767769855465,-151.0,0.000399,120]
[400656271,1767769855475,-151.0,0.000399,120]
[400656272,1767769855485,-151.0,0.000399,120]
[400656273,1767769855501,-2080.0,0.000399,120]
[400656274,1767769855511,-2080.0,0.000399,120]
[400656275,1767769855520,-2080.0,0.000399,120]
[400656276,1767769855530,-2080.0,0.000399,120]
[400656277,1767769855539,-591.872125,0.000399,120]
[400656278,1767769855549,-591.872125,0.000399,120]
[400656279,1767769855559,-591.872125,0.000399,120]
[400656280,1767769855568,-591.872131,0.000399,120]
[400656281,1767769855578,-929.449749,0.000399,120]
[400656282,1767769855587,-929.449749,0.000399,120]
[400656283,1767769855596,-929.449749,0.000399,120]
[400656284,1767769855605,-164.602406,0.000399,120]
[400656285,1767769855615,-929.44975,0.000399,120]
[400656286,1767769855626,-164.602406,0.000399,120]
[400656287,1767769855636,-164.602406,0.000399,120]
[400656288,1767769855645,-164.602414,0.000399,120]
[400656289,1767769855655,-551.561254,0.000399,120]
[400656290,1767769855664,-551.561254,0.000399,120]
[400656291,1767769855674,-1737.735026,0.000399,120]
[400656292,1767769855684,-551.561254,0.000399,120]
[400656293,1767769855693,-1737.735026,0.000399,120]
[400656294,1767769855702,-551.561258,0.000399,120]
[400656295,1767769855711,-1737.735026,0.000399,120]
[400656296,1767769855721,-1737.735035,0.000399,120]
[400656297,1767769855730,-420.77578,0.000399,120]
[400656298,1767769855740,-242.109031,0.000399,120]
[400656299,1767769855749,-420.77578,0.000399,120]
[400656300,1767769855759,-242.109031,0.000399,120]
[400656301,1767769855768,-420.77578,0.000399,120]
[400656302,1767769855781,-242.109031,0.000399,120]
[400656303,1767769855791,-890.463938,0.000399,120]
[400656304,1767769855800,-242.109035,0.000399,120]
[400656305,1767769855810,-289.06162,0.000399,120]
[400656306,1767769855819,-420.775776,0.000399,120]
[400656307,1767769855828,-890.463938,0.000399,120]
[400656308,1767769855838,-289.06162,0.000399,120]
[400656309,1767769855847,-890.463938,0.000399,120]
[400656310,1767769855857,-289.06162,0.000399,120]
[400656311,1767769855866,-890.46393,0.000399,120]
[400656312,1767769855875,-289.061616,0.000399,120]
[400656313,1767769855884,-422.686257,0.000399,120]
[400656314,1767769855894,-422.686257,0.000399,120]
[400656315,1767769855903,-422.686257,0.000399,120]
[400656316,1767769855912,-422.686258,0.000399,120]
[400656317,1767769855922,-3641.58263655,0.000399,15]
[400656318,1767769855931,-151.0,0.000399,90]
[400656319,1767769855941,-167.8709529,0.000399,15]
[400656320,1767769855951,-432.316647,0.000399,120]
[400656321,1767769855960,-432.316647,0.000399,120]
[400656322,1767769855971,-432.316647,0.000399,120]
[400656323,1767769855981,-303.816362,0.000399,120]
[400656324,1767769855990,-432.316642,0.000399,120]
[400656325,1767769856000,-303.816362,0.000399,120]
[400656326,1767769856010,-151.0,0.000399,120]
[400656327,1767769856019,-151.0,0.000399,120]
[400656328,1767769856030,-303.816362,0.000399,120]
[400656329,1767769856039,-303.816358,0.000399,120]
[400656330,1767769856049,-151.0,0.000399,120]
[400656331,1767769856059,-151.0,0.000399,120]
[400656332,1767769856069,-350.712633,0.000399,2]
[400656333,1767769856081,-151.0,0.000399,120]
[400656334,1767769856091,-151.0,0.000399,120]
[400656335,1767769856100,-207.676796,0.000399,120]
[400656336,1767769856111,-72711.70738032,0.0003998,2]
[400656337,1767769856930,-151.0,0.00031507,31]
[400656338,1767769856942,-2522.20750685,0.0003998,2]
[400656339,1767769857253,-350.712633,0.0002,2]
[400656340,1767769857264,-121.607067,0.0002,2]
[400656341,1767769857279,-229.105566,0.0002,2]
[400656342,1767769857290,-350.712633,0.00021918,2]
[400656343,1767769857302,-350.712633,0.00021918,2]
[400656344,1767769857312,-565.0,0.00027659,2]
[400656345,1767769857323,-350.712633,0.00029123,2]
[400656346,1767769857335,-350.712633,0.00029123,2]
[400656347,1767769857346,-350.712633,0.00029123,2]
[400656348,1767769857357,-565.0,0.00030659,2]
[400656349,1767769857372,-151.0,0.00031507,31]
[400656350,1767769857384,-151.0,0.00031507,31]
[400656351,1767769857394,-151.0,0.00031507,31]
[400656352,1767769857405,-151.0,0.00031507,31]
[400656353,1767769857418,-1178.779644,0.00031507,31]
[400656354,1767769857430,-1178.779644,0.00031507,31]
[400656355,1767769857441,-1178.779644,0.00031507,31]
[400656356,1767769857453,-389.25976086,0.00033659,2]
[400656357,1767769857736,-69.47122563,0.00016997,2]
[400656358,1767769858159,460.0,0.00030127,120]
[400656359,1767769858300,460.0,0.00030127,120]
[400656360,1767769858453,460.0,0.00030127,120]
[400656361,1767769858596,460.0,0.00030127,120]
[400656378,1767770103134,688.77053762,0.00023,120]
[400656379,1767770103179,10081.10981897,0.00023,120]
[400656386,1767770158747,162.63,0.00032877,120]
[400656389,1767770260447,150.26020823,0.00032877,120]
[400656419,1767770636229,150.0,0.000165,2]
[400656434,1767770730684,203.27650888,0.0002,120]
[400656435,1767770732599,412.45693485,0.0003287,120]
[400656446,1767770824695,110000.0,0.00032876,120]
[400656458,1767770912135,386.78875068,0.0003,120]
[400656463,1767770920678,848.875739,0.0003,120]
[400656464,1767770920763,390.81183941,0.0003,120]
[400656472,1767770957149,-150.0,0.0001657,2]
[400656473,1767770957170,-375.58262506,0.00016613,2]
[400656474,1767770957191,-1200.0,0.00016655,2]
[400656475,1767770957212,-300.0,0.00016655,2]
[400656476,1767770957232,-300.0,0.00016655,2]
[400656477,1767770957252,-3030.33548272,0.00016656,2]
[400656478,1767770996202,166.66,0.00015653,2]
[400656479,1767770996506,166.66,0.00015983,2]
[400656480,1767770996712,166.66,0.00016312,2]
[400656483,1767771017329,306.6928058,0.0003287,120]
[400656528,1767771032406,-166.66,0.00016642,2]
[400656530,1767771032415,-538.230961,0.00016649,2]
[400656532,1767771032427,-347.075,0.00016649,2]
[400656534,1767771032438,-593.68559843,0.00016649,2]
[400656536,1767771032450,-1021.00844057,0.00016649,2]
[400656538,1767771032459,-195.0,0.00016649,2]
[400656540,1767771032469,-257.57,0.00016715,2]
[400656542,1767771032478,-2500.0,0.00016739,2]
[400656544,1767771032488,-1838.59523771,0.00016797,2]
[400656546,1767771032497,-1200.0,0.00016885,2]
[400656548,1767771032507,-593.67383633,0.00016886,2]
[400656550,1767771032516,-663.09,0.00016886,3]
[400656552,1767771032525,-151.0,0.00016893,2]
[400656555,1767771032535,-300.0,0.00016894,2]
[400656556,1767771032544,-500.0,0.00016895,2]
[400656558,1767771032553,-500.0,0.00016895,2]
[400656560,1767771032562,-500.0,0.00016895,2]
[400656562,1767771032571,-500.0,0.00016895,2]
[400656564,1767771032580,-230.49522891,0.00016895,2]
[400656566,1767771032590,-500.0,0.00016895,2]
[400656568,1767771032599,-500.0,0.00016895,2]
[400656570,1767771032609,-500.0,0.00016895,2]
[400656572,1767771032619,-396.40155279,0.00016895,2]
[400656574,1767771032628,-500.0,0.00016895,2]
[400656576,1767771032638,-500.0,0.00016895,2]
[400656578,1767771032648,-500.0,0.00016895,2]
[400656580,1767771032657,-500.0,0.00016895,2]
[400656582,1767771032666,-554.57589785,0.00016895,2]
[400656584,1767771032675,-500.0,0.00016895,2]
[400656586,1767771032684,-500.0,0.00016895,2]
[400656588,1767771032693,-500.0,0.00016895,2]
[400656590,1767771032702,-500.0,0.00016895,2]
[400656592,1767771032712,-500.0,0.00016895,2]
[400656594,1767771032724,-500.0,0.00016895,2]
[400656596,1767771032734,-500.0,0.00016895,2]
[400656598,1767771032743,-500.0,0.00016895,2]
[400656600,1767771032752,-500.0,0.00016895,2]
[400656602,1767771032761,-500.0,0.00016895,2]
[400656604,1767771032770,-500.0,0.00016895,2]
[400656605,1767771032779,-500.0,0.00016895,2]
[400656607,1767771032789,-500.0,0.00016895,2]
[400656608,1767771032798,-500.0,0.00016895,2]
[400656609,1767771032806,-500.0,0.00016895,2]
[400656611,1767771032816,-500.0,0.00016895,2]
[400656612,1767771032825,-427.02584443,0.00016895,2]
[400656613,1767771032834,-500.0,0.00016895,2]
[400656614,1767771032843,-500.0,0.00016895,2]
[400656615,1767771032854,-500.0,0.00016895,2]
[400656616,1767771032864,-500.0,0.00016895,2]
[400656617,1767771032873,-500.0,0.00016895,2]
[400656618,1767771032882,-500.0,0.00016895,2]
[400656619,1767771032891,-500.0,0.00016895,2]
[400656620,1767771032902,-500.0,0.00016895,2]
[400656621,1767771032913,-500.0,0.00016895,2]
[400656622,1767771032921,-500.0,0.00016895,2]
[400656623,1767771032930,-500.0,0.00016895,2]
[400656624,1767771032940,-500.0,0.00016895,2]
[400656625,1767771032948,-500.0,0.00016895,2]
[400656626,1767771032957,-500.0,0.00016895,2]
[400656627,1767771032966,-500.0,0.00016895,2]
[400656628,1767771032975,-500.0,0.00016895,2]
[400656629,1767771032985,-500.0,0.00016895,2]
[400656630,1767771032994,-500.0,0.00016895,2]
[400656631,1767771033003,-500.0,0.00016895,2]
[400656632,1767771033012,-500.0,0.00016895,2]
[400656633,1767771033021,-500.0,0.00016895,2]
[400656634,1767771033031,-500.0,0.00016895,2]
[400656635,1767771033043,-350.0,0.00016895,2]
[400656636,1767771033052,-500.0,0.00016895,2]
[400656637,1767771033061,-500.0,0.00016895,2]
[400656638,1767771033071,-500.0,0.00016895,2]
[400656639,1767771033080,-500.0,0.00016895,2]
[400656640,1767771033089,-500.0,0.00016895,2]
[400656641,1767771033098,-500.0,0.00016895,2]
[400656642,1767771033108,-500.0,0.00016895,2]
[400656643,1767771033117,-500.0,0.00016895,2]
[400656644,1767771033126,-500.0,0.00016895,2]
[400656645,1767771033136,-263.0,0.00016895,2]
[400656646,1767771033145,-1000000.0,0.00016896,2]
[400656647,1767771033154,-1000.0,0.00016897,2]
[400656648,1767771033163,-1208.5882,0.00016897,2]
[400656649,1767771033172,-1838.59523771,0.0001693,2]
[400656650,1767771033182,-166.66,0.00016971,2]
[400656651,1767771033191,-214.69776175,0.00016995,2]
[400656652,1767771033200,-164.13,0.00016996,2]
[400656653,1767771033209,-273.90631056,0.00016996,2]
[400656654,1767771033218,-500.0,0.00016996,2]
[400656655,1767771033228,-500.0,0.00016996,2]
[400656656,1767771033237,-500.0,0.00016996,2]
[400656657,1767771033246,-500.0,0.00016996,2]
[400656658,1767771033255,-384.73001727,0.00016996,2]
[400656659,1767771033265,-206.91,0.00016996,2]
[400656660,1767771033274,-500.0,0.00016996,2]
[400656661,1767771033284,-600.92295159,0.00016996,2]
[400656662,1767771033294,-240.87342203,0.00016996,2]
[400656663,1767771033303,-885.982,0.00016996,2]
[400656664,1767771033312,-500.0,0.00016996,2]
[400656665,1767771033322,-500.0,0.00016996,2]
[400656666,1767771033332,-500.0,0.00016996,2]
[400656667,1767771033341,-500.0,0.00016996,2]
[400656668,1767771033350,-2493.86523746,0.00016996,2]
[400656669,1767771033361,-1838.59523771,0.00017064,2]
[400656670,1767771033370,-500.0,0.00017096,2]
[400656671,1767771033379,-500.0,0.00017096,2]
[400656672,1767771033388,-500.0,0.00017096,2]
[400656673,1767771033398,-500.0,0.00017096,2]
[400656674,1767771033407,-588.78227506,0.00017096,2]
[400656675,1767771033417,-500.0,0.00017096,2]
[400656676,1767771033427,-500.0,0.00017096,2]
[400656677,1767771033436,-500.0,0.00017096,2]
[400656678,1767771033446,-500.0,0.00017096,2]
[400656679,1767771033455,-2493.86523738,0.00017118,2]
[400656680,1767771033465,-151.0,0.00017155,2]
[400656681,1767771033474,-151.0,0.00017155,2]
[400656682,1767771033484,-5172.38,0.0001716,2]
[400656683,1767771033493,-500.0,0.00017196,2]
[400656684,1767771033502,-500.0,0.00017196,2]
[400656685,1767771033512,-511.9256593,0.00017196,2]
[400656686,1767771033521,-1838.59523771,0.00017197,2]
[400656687,1767771033530,-2493.86523738,0.00017241,2]
[400656688,1767771033540,-206.91,0.0001727,2]
[400656689,1767771033549,-166.66,0.00017301,2]
[400656690,1767771033558,-1838.59523771,0.0001733,2]
[400656691,1767771033567,-2493.86523738,0.00017363,2]
[400656692,1767771033577,-1838.59523771,0.00017464,2]
[400656693,1767771033586,-2493.86523738,0.00017485,2]
[400656694,1767771033595,-206.93629505,0.00017544,2]
[400656695,1767771033604,-1838.59523771,0.00017597,2]
[400656696,1767771033613,-2493.86523738,0.00017608,2]
[400656697,1767771033622,-331.68797963,0.00017711,2]
[400656698,1767771033631,-2493.86523738,0.0001773,2]
[400656699,1767771033641,-1838.59523771,0.0001773,2]
[400656700,1767771033650,-2493.86523738,0.00017852,2]
[400656701,1767771033659,-331.68797963,0.00017854,2]
[400656702,1767771033668,-1838.59523771,0.00017864,2]
[400656703,1767771033678,-500.0,0.00017973,2]
[400656704,1767771033687,-500.0,0.00017973,2]
[400656705,1767771033697,-500.0,0.00017973,2]
[400656706,1767771033706,-500.0,0.00017973,2]
[400656707,1767771033715,-500.0,0.00017973,2]
[400656708,1767771033727,-500.0,0.00017973,2]
[400656709,1767771033736,-500.0,0.00017973,2]
[400656710,1767771033745,-524.05521125,0.00017973,2]
[400656711,1767771033754,-500.0,0.00017973,2]
[400656712,1767771033764,-500.0,0.00017973,2]
[400656713,1767771033773,-500.0,0.00017973,2]
[400656714,1767771033782,-500.0,0.00017973,2]
[400656715,1767771033792,-324.19847389,0.00017973,2]
[400656716,1767771033801,-519.44971303,0.00017973,2]
[400656717,1767771033810,-500.0,0.00017973,2]
[400656718,1767771033819,-2493.86523738,0.00017975,2]
[400656719,1767771033828,-626.80784924,0.0001799,2]
[400656720,1767771033836,-626.80784924,0.0001799,2]
[400656721,1767771033845,-626.80784924,0.0001799,2]
[400656722,1767771033854,-500.0,0.00017991,2]
[400656723,1767771033863,-500.0,0.00017992,2]
[400656724,1767771033872,-500.0,0.00017992,2]
[400656725,1767771033881,-331.68797963,0.00017997,2]
[400656726,1767771033890,-151.0,0.00017997,2]
[400656727,1767771033899,-1838.59523771,0.00017997,2]
[400656728,1767771033908,-421.80735534,0.00017997,2]
[400656729,1767771033917,-2682.51220031,0.00017997,2]
[400656730,1767771033926,-1664.16496471,0.00017997,2]
[400656731,1767771033935,-239.95642198,0.00017999,2]
[400656732,1767771033943,-300.0,0.00017999,2]
[400656733,1767771033953,-666.0,0.00017999,2]
[400656734,1767771033962,-440.82220228,0.00017999,2]
[400656735,1767771033971,-500.0,0.00017999,2]
[400656736,1767771033979,-229.68831349,0.00017999,2]
[400656737,1767771033988,-226.63306147,0.00017999,2]
[400656738,1767771033997,-500.0,0.00017999,2]
[400656739,1767771034006,-521.33481588,0.00017999,2]
[400656740,1767771034015,-549538.14175028,0.00018,2]
[400656741,1767771034029,-20988.94574405,0.00018,2]
[400656742,1767771034040,-109167.29398382,0.00018,2]
[400656743,1767771034051,-43782.51825268,0.00018,2]
[400656744,1767771034087,-178.61513242,0.00017997,3]
[400656745,1767771034095,-1405.38684934,0.00018,2]
[400656748,1767771037755,-975.13,0.00017997,2]
[400656749,1767771037767,-292.696336,0.00017997,2]
[400656750,1767771037842,-2037.95011613,0.00017997,2]
[400656751,1767771037852,-4594269.55225693,0.00018,2]
[400656752,1767771037863,-2524.37307186,0.00018,2]
[400656753,1767771037934,-990.98677168,0.00018,2]
[400656754,1767771037950,-92720.4991051,0.00018,2]
[400656906,1767771039774,-424.61229598,0.00018,2]
[400656910,1767771039796,-9858.03672403,0.00018,2]
[400656929,1767771039958,-71455.50487635,0.00018,2]
[400656931,1767771039969,-19763.67566754,0.00018,2]
[400656933,1767771039980,-1174.68948711,0.00018,2]
[400656935,1767771039991,-4119.45280101,0.00018,2]
[400656938,1767771040002,-278.33381412,0.00018,2]
[400656940,1767771040013,-4618.87834935,0.00018,2]
[400656942,1767771040023,-864.06958071,0.00018,2]
[400656944,1767771040034,-2184.25360571,0.00018,2]
[400656961,1767771040184,-859.29674423,0.00018,2]
[400656964,1767771040195,-1609.07334545,0.00018,2]
[400657373,1767771044054,-1832.67330149,0.00018,2]
[400657375,1767771044065,-384.996,0.00018,2]
[400657378,1767771044083,-526.08703028,0.00017997,2]
[400657380,1767771044091,-2605.42428044,0.00018,2]
[400657389,1767771044165,-35008.71908417,0.00018,2]
[400657391,1767771044175,-773.17359864,0.00018,2]
[400657484,1767771045050,-305.43973936,0.00018,2]